fUSD/lending_fUSD_20251105
["ID","MTS","AMOUNT","RATE_DAILY","PERIOD"]
[393185826,1762303840413,-166.66,0.00020874,2]
[393185827,1762303840423,-8949.55818753,0.00020887,2]
[393185828,1762303840432,-151.0,0.0002096,2]
[393185829,1762303840441,-151.0,0.0002096,2]
[393185830,1762303840451,-151.0,0.0002096,2]
[393185831,1762303840460,-151.0,0.0002096,2]
[393185832,1762303840469,-151.0,0.0002096,2]
[393185833,1762303840478,-151.0,0.0002096,2]
[393185834,1762303840487,-151.0,0.0002096,2]
[393185835,1762303840496,-151.0,0.0002096,2]
[393185836,1762303840505,-151.0,0.0002096,2]
[393185837,1762303840514,-151.0,0.0002096,2]
[393185838,1762303840523,-151.0,0.0002096,2]
[393185839,1762303840532,-151.0,0.0002096,2]
[393185840,1762303840541,-151.0,0.0002096,2]
[393185841,1762303840551,-151.0,0.0002096,2]
[393185842,1762303840561,-151.0,0.0002097,2]
[393185843,1762303840573,-500.0,0.00020973,2]
[393185844,1762303840582,-500.0,0.00020973,2]
[393185845,1762303840592,-500.0,0.00020973,2]
[393185846,1762303840601,-500.0,0.00020973,2]
[393185847,1762303840610,-500.0,0.00020973,2]
[393185849,1762303840621,-501.53442277,0.00020973,2]
[393185851,1762303840631,-243.53715851,0.00020973,2]
[393185853,1762303840640,-501.22801815,0.00020973,2]
[393185855,1762303840649,-500.0,0.00020973,2]
[393185857,1762303840658,-500.0,0.00020973,2]
[393185859,1762303840667,-194.38483642,0.00020973,2]
[393185861,1762303840676,-500.0,0.00020987,2]
[393185862,1762303840686,-150.0,0.00020987,2]
[393185863,1762303840695,-162.26837285,0.00020987,2]
[393185864,1762303840704,-150.0,0.00020987,2]
[393185865,1762303840713,-150.0,0.00020987,2]
[393185866,1762303840722,-150.0,0.00020987,2]
[393185867,1762303840732,-150.0,0.00020987,2]
[393185868,1762303840741,-150.0,0.00020987,2]
[393185869,1762303840750,-150.0,0.00020987,2]
[393185870,1762303840820,-150.0,0.00020987,2]
[393185871,1762303840829,-150.0,0.00020987,2]
[393185872,1762303840838,-150.0,0.00020987,2]
[393185873,1762303840847,-150.0,0.00020987,2]
[393185874,1762303840855,-500.0,0.00020987,2]
[393185875,1762303840865,-150.0,0.00020987,2]
[393185876,1762303840874,-500.0,0.00020987,2]
[393185877,1762303840883,-513.0,0.00020987,2]
[393185878,1762303840892,-1000.0,0.00020999,2]
[393185879,1762303840901,-873.57,0.00020999,2]
[393185880,1762303840910,-150.0,0.00020999,2]
[393185881,1762303840920,-150.0,0.00020999,2]
[393185882,1762303840929,-150.0,0.00020999,2]
[393185883,1762303840938,-150.0,0.00020999,2]
[393185884,1762303840947,-500.0,0.00020999,2]
[393185885,1762303840960,-150.0,0.00020999,2]
[393185886,1762303840968,-150.0,0.00020999,2]
[393185887,1762303840977,-150.0,0.00020999,2]
[393185888,1762303840986,-150.0,0.00020999,2]
[393185889,1762303840996,-500.0,0.00020999,2]
[393185890,1762303841006,-500.0,0.00020999,2]
[393185891,1762303841015,-500.0,0.00020999,2]
[393185892,1762303841025,-205.38813465,0.00020999,2]
[393185893,1762303841038,-500.0,0.00020999,2]
[393185894,1762303841047,-500.0,0.00020999,2]
[393185895,1762303841056,-150.0,0.00020999,2]
[393185896,1762303841065,-150.0,0.00020999,2]
[393185897,1762303841074,-150.0,0.00020999,2]
[393185898,1762303841083,-32870.15599262,0.00021,2]
[393185899,1762303841093,-1181.43161288,0.00021,2]
[393185900,1762303841102,-195.01197734,0.00021,2]
[393185901,1762303841111,-3903.82317,0.00021,2]
[393185902,1762303841121,-166.66,0.00021112,2]
[393185903,1762303841130,-555.98606749,0.00021124,2]
[393185904,1762303841139,-150.0,0.00021124,2]
[393185905,1762303841148,-150.0,0.00021124,2]
[393185906,1762303841158,-150.0,0.00021124,2]
[393185907,1762303841167,-150.0,0.00021124,2]
[393185908,1762303841175,-150.0,0.00021124,2]
[393185909,1762303841184,-500.0,0.00021124,2]
[393185910,1762303841193,-500.0,0.00021124,2]
[393185911,1762303841202,-513.0,0.00021124,2]
[393185912,1762303841211,-150.83032951,0.00021136,2]
[393185914,1762303841220,-150.0,0.00021136,2]
[393185915,1762303841229,-150.0,0.00021136,2]
[393185916,1762303841238,-500.0,0.00021136,2]
[393185917,1762303841247,-150.0,0.00021136,2]
[393185918,1762303841255,-150.0,0.00021136,2]
[393185919,1762303841264,-500.0,0.00021136,2]
[393185920,1762303841273,-500.0,0.00021136,2]
[393185921,1762303841281,-150.0,0.00021136,2]
[393185922,1762303841290,-150.0,0.00021136,2]
[393185923,1762303841299,-250.0,0.00021152,2]
[393185924,1762303841308,-2000.0,0.00021164,2]
[393185925,1762303841316,-3903.82318,0.0002119,2]
[393185926,1762303841326,-150.0,0.00021261,2]
[393185927,1762303841336,-150.0,0.00021261,2]
[393185928,1762303841345,-150.0,0.00021261,2]
[393185929,1762303841353,-150.0,0.00021261,2]
[393185930,1762303841362,-200.0,0.00021261,2]
[393185931,1762303841372,-500.0,0.00021261,2]
[393185932,1762303841382,-500.0,0.00021261,2]
[393185933,1762303841391,-513.0,0.00021261,2]
[393185934,1762303841400,-150.0,0.00021273,2]
[393185935,1762303841409,-348.13719527,0.00021273,2]
[393185936,1762303841419,-500.0,0.00021273,2]
[393185937,1762303841428,-500.0,0.00021273,2]
[393185938,1762303841437,-150.0,0.00021273,2]
[393185939,1762303841447,-150.0,0.00021273,2]
[393185940,1762303841456,-873.57,0.00021273,2]
[393185941,1762303841465,-166.66,0.00021279,2]
[393185942,1762303841474,-6313.3,0.0002137,2]
[393185943,1762303841483,-150.0,0.00021398,2]
[393185944,1762303841492,-200.0,0.00021398,2]
[393185945,1762303841501,-200.0,0.00021398,2]
[393185946,1762303841510,-150.0,0.00021398,2]
[393185947,1762303841519,-486.65680908,0.00021398,2]
[393185948,1762303841528,-500.0,0.00021398,2]
[393185949,1762303841537,-513.0,0.00021398,2]
[393185950,1762303841546,-285.77358979,0.000214,2]
[393185951,1762303841555,-500.0,0.0002141,2]
[393185952,1762303841564,-500.0,0.0002141,2]
[393185953,1762303841573,-163.25,0.00021466,2]
[393185954,1762303841582,-150.0,0.00021473,2]
[393185955,1762303841591,-500.0,0.00021473,2]
[393185956,1762303841600,-500.0,0.00021473,2]
[393185957,1762303841610,-500.0,0.00021473,2]
[393185958,1762303841621,-161.1596466,0.00021473,2]
[393185959,1762303841631,-500.0,0.00021473,2]
[393185960,1762303841640,-160.17732397,0.00021473,2]
[393185961,1762303841650,-500.0,0.00021473,2]
[393185962,1762303841659,-500.0,0.00021473,2]
[393185963,1762303841668,-500.0,0.00021473,2]
[393185964,1762303841678,-500.0,0.00021473,2]
[393185965,1762303841688,-500.33584785,0.00021473,2]
[393185966,1762303841697,-500.0,0.00021473,2]
[393185967,1762303841706,-500.0,0.00021473,2]
[393185968,1762303841715,-500.0,0.00021473,2]
[393185969,1762303841725,-561.51407655,0.00021473,2]
[393185970,1762303841734,-211.36154485,0.00021473,2]
[393185971,1762303841744,-172.16017549,0.00021473,2]
[393185972,1762303841753,-500.0,0.00021473,2]
[393185973,1762303841762,-502.80687034,0.00021473,2]
[393185974,1762303841771,-500.0,0.00021473,2]
[393185975,1762303841780,-516.00653523,0.00021473,2]
[393185976,1762303841790,-500.0,0.00021473,2]
[393185977,1762303841800,-500.0,0.00021473,2]
[393185978,1762303841809,-500.0,0.00021473,2]
[393185979,1762303841819,-500.0,0.00021473,2]
[393185980,1762303841828,-500.0,0.00021473,2]
[393185981,1762303841838,-500.0,0.00021473,2]
[393185982,1762303841848,-500.0,0.00021473,2]
[393185983,1762303841858,-200.0,0.00021473,2]
[393185984,1762303841869,-500.0,0.00021473,2]
[393185985,1762303841879,-500.0,0.00021473,2]
[393185986,1762303841888,-500.0,0.00021473,2]
[393185987,1762303841898,-500.0,0.00021473,2]
[393185988,1762303841907,-500.0,0.00021473,2]
[393185989,1762303841916,-509.79482902,0.00021473,2]
[393185990,1762303841926,-500.0,0.00021473,2]
[393185991,1762303841936,-500.0,0.00021473,2]
[393185992,1762303841946,-500.0,0.00021473,2]
[393185993,1762303841958,-500.0,0.00021473,2]
[393185994,1762303841970,-500.0,0.00021499,2]
[393185995,1762303841979,-438.92674076,0.00021499,2]
[393185996,1762303841990,-500.0,0.00021499,2]
[393185997,1762303841999,-500.0,0.00021499,2]
[393185998,1762303842010,-500.0,0.00021499,2]
[393185999,1762303842019,-500.0,0.00021499,2]
[393186000,1762303842029,-500.0,0.00021499,2]
[393186001,1762303842042,-500.0,0.00021499,2]
[393186002,1762303842052,-57401.90144683,0.000215,2]
[393186003,1762303842061,-219.92237835,0.000215,2]
[393186004,1762303842071,-1870.0,0.00021514,2]
[393186005,1762303842080,-485.04266598,0.00021521,2]
[393186006,1762303842089,-1000.0,0.00021521,2]
[393186007,1762303842099,-1000.0,0.00021521,2]
[393186008,1762303842109,-500.0,0.00021521,2]
[393186009,1762303842120,-1000.0,0.00021521,2]
[393186010,1762303842130,-970.90212358,0.00021521,2]
[393186011,1762303842140,-587.0,0.00021531,2]
[393186012,1762303842150,-587.0,0.00021531,2]
[393186013,1762303842160,-200.0,0.00021535,2]
[393186014,1762303842170,-150.0,0.00021535,2]
[393186015,1762303842179,-500.0,0.00021535,2]
[393186016,1762303842189,-513.0,0.00021535,2]
[393186017,1762303842199,-500.0,0.00021547,2]
[393186018,1762303842209,-500.0,0.00021547,2]
[393186019,1762303842218,-873.57,0.00021547,2]
[393186020,1762303842228,-151.0,0.00021587,2]
[393186021,1762303842237,-951.43747,0.0002159,2]
[393186022,1762303842247,-951.43748,0.000216,2]
[393186023,1762303842256,-951.43747,0.0002162,2]
[393186024,1762303842265,-951.43747,0.0002162,2]
[393186025,1762303842275,-951.43747,0.0002162,2]
[393186026,1762303842285,-951.43747,0.0002163,2]
[393186027,1762303842295,-500.0,0.00021672,2]
[393186028,1762303842307,-513.0,0.00021672,2]
[393186029,1762303842317,-500.0,0.00021684,2]
[393186030,1762303842327,-500.0,0.00021684,2]
[393186031,1762303842338,-3903.82317,0.0002169,2]
[393186032,1762303842348,-500.0,0.00021712,2]
[393186033,1762303842358,-206.58008751,0.00021719,2]
[393186034,1762303842367,-1492.26219495,0.0002172,2]
[393186035,1762303842377,-2351.0,0.00021743,2]
[393186036,1762303842387,-166.66,0.00021787,2]
[393186037,1762303842396,-500.0,0.00021809,2]
[393186038,1762303842406,-513.0,0.00021809,2]
[393186039,1762303842416,-500.0,0.00021821,2]
[393186040,1762303842425,-331.48298411,0.00021821,2]
[393186041,1762303842434,-873.57,0.00021821,2]
[393186042,1762303842443,-5000.0,0.00021918,2]
[393186043,1762303842453,-500.0,0.00021946,2]
[393186044,1762303842463,-513.0,0.00021946,2]
[393186045,1762303842472,-230.27713662,0.00021958,2]
[393186046,1762303842481,-4106.25636954,0.00022,2]
[393186047,1762303842491,-160.97,0.00022,2]
[393186048,1762303842500,-150.0,0.00022021,2]
[393186049,1762303842510,-1000.0,0.00022021,2]
[393186050,1762303842519,-1000.0,0.00022021,2]
[393186051,1762303842528,-1000.0,0.00022021,2]
[393186052,1762303842537,-1000.0,0.00022021,2]
[393186053,1762303842547,-1000.0,0.00022021,2]
[393186054,1762303842556,-1000.0,0.00022021,2]
[393186055,1762303842567,-1000.0,0.00022021,2]
[393186056,1762303842576,-1000.0,0.00022021,2]
[393186057,1762303842586,-1009.8687602,0.00022021,2]
[393186058,1762303842595,-912.69216128,0.00022021,2]
[393186059,1762303842604,-1001.89466476,0.00022021,2]
[393186060,1762303842614,-1000.0,0.00022021,2]
[393186061,1762303842624,-1000.0,0.00022021,2]
[393186062,1762303842633,-170.97892851,0.00022021,2]
[393186063,1762303842643,-1000.0,0.00022021,2]
[393186064,1762303842652,-1000.0,0.00022021,2]
[393186065,1762303842663,-1000.0,0.00022021,2]
[393186066,1762303842673,-1000.0,0.00022021,2]
[393186067,1762303842682,-1000.0,0.00022021,2]
[393186068,1762303842691,-1000.0,0.00022021,2]
[393186069,1762303842700,-182.34726905,0.00022021,2]
[393186070,1762303842711,-1000.0,0.00022021,2]
[393186071,1762303842722,-807.90335755,0.00022021,2]
[393186072,1762303842733,-1000.0,0.00022021,2]
[393186073,1762303842745,-568.57012938,0.00022021,2]
[393186074,1762303842756,-1000.0,0.00022021,2]
[393186075,1762303842767,-1000.0,0.00022021,2]
[393186076,1762303842777,-1500.0,0.00022068,2]
[393186077,1762303842787,-325.51573275,0.00022068,2]
[393186078,1762303842797,-1632.68205004,0.00022068,2]
[393186079,1762303842807,-500.0,0.00022083,2]
[393186080,1762303842817,-513.0,0.00022083,2]
[393186081,1762303842827,-873.57,0.00022095,2]
[393186082,1762303842837,-489.5341435,0.000221,2]
[393186083,1762303842848,-237.86907179,0.0002211,2]
[393186084,1762303842859,-400.0,0.00022158,2]
[393186085,1762303842869,-3903.82318,0.0002218,2]
[393186086,1762303842879,-500.0,0.0002222,2]
[393186087,1762303842890,-513.0,0.0002222,2]
[393186088,1762303842899,-500.0,0.00022354,2]
[393186089,1762303842909,-500.0,0.00022357,2]
[393186090,1762303842920,-513.0,0.00022357,2]
[393186091,1762303842930,-873.57,0.00022369,2]
[393186092,1762303842940,-414.94774321,0.00022405,2]
[393186093,1762303842951,-166.66,0.00022461,2]
[393186094,1762303842966,-163.27,0.0002249,2]
[393186095,1762303842976,-500.0,0.00022494,2]
[393186096,1762303842987,-513.0,0.00022494,2]
[393186097,1762303842998,-500.0,0.00022499,2]
[393186098,1762303843009,-500.0,0.00022499,2]
[393186099,1762303843019,-35139.148593,0.000225,2]
[393186100,1762303843030,-1653.0,0.00022521,2]
[393186101,1762303843045,-3256.9801503,0.00022527,2]
[393186102,1762303843055,-7986.5894657,0.0002256,2]
[393186103,1762303843066,-150.0,0.00022568,2]
[393186104,1762303843076,-1500.0,0.00022568,2]
[393186106,1762303843086,-1299.13836372,0.00022568,2]
[393186107,1762303843095,-1500.0,0.00022568,2]
[393186110,1762303843105,-1500.0,0.00022568,2]
[393186114,1762303843116,-834.36236611,0.00022568,2]
[393186117,1762303843127,-1520.07954726,0.00022568,2]
[393186119,1762303843137,-788.26297983,0.00022568,2]
[393186120,1762303843147,-1500.0,0.00022568,2]
[393186121,1762303843156,-590.04489551,0.00022568,2]
[393186122,1762303843166,-1500.0,0.00022568,2]
[393186123,1762303843177,-1500.0,0.00022568,2]
[393186124,1762303843186,-1500.0,0.00022568,2]
[393186125,1762303843196,-1500.0,0.00022568,2]
[393186126,1762303843206,-1389.73286434,0.00022568,2]
[393186127,1762303843216,-1500.0,0.00022568,2]
[393186128,1762303843227,-1500.0,0.00022568,2]
[393186129,1762303843237,-1500.0,0.00022568,2]
[393186130,1762303843248,-1500.0,0.00022568,2]
[393186131,1762303843258,-214.84688281,0.00022568,2]
[393186132,1762303843268,-1141.98943615,0.00022568,2]
[393186134,1762303843279,-36067.4363295,0.00022598,2]
[393186135,1762303843289,-151.0,0.00022598,7]
[393186136,1762303843300,-151.0,0.00022598,7]
[393186137,1762303843310,-151.0,0.00022598,7]
[393186138,1762303843320,-151.0,0.00022598,7]
[393186139,1762303843331,-329.67239,0.00022598,7]
[393186141,1762303843342,-152.184127,0.00022598,7]
[393186142,1762303843352,-329.67239,0.00022598,7]
[393186143,1762303843362,-329.67239,0.00022598,7]
[393186144,1762303843375,-329.67239,0.00022598,7]
[393186145,1762303843385,-151.0,0.00022598,7]
[393186146,1762303843397,-151.0,0.00022598,7]
[393186147,1762303843408,-151.0,0.00022598,7]
[393186148,1762303843418,-523.2546571,0.000226,2]
[393186149,1762303843428,-2000.0,0.00022616,2]
[393186150,1762303843439,-500.0,0.00022631,2]
[393186151,1762303843450,-513.0,0.00022631,2]
[393186152,1762303843461,-873.57,0.00022643,2]
[393186153,1762303843472,-3903.82318,0.0002269,2]
[393186154,1762303843482,-517.65922778,0.0002271,2]
[393186155,1762303843493,-500.0,0.00022768,2]
[393186156,1762303843504,-513.0,0.00022768,2]
[393186157,1762303843515,-1056.1906131,0.0002278,2]
[393186158,1762303843526,-8949.55818752,0.00022807,2]
[393186159,1762303843536,-600.0,0.00022842,2]
[393186160,1762303843547,-250.14623623,0.00022859,2]
[393186161,1762303843558,-19197.29561683,0.000229,2]
[393186162,1762303843568,-1000.0,0.00022902,2]
[393186163,1762303843578,-500.0,0.00022905,2]
[393186164,1762303843588,-513.0,0.00022905,2]
[393186165,1762303843598,-873.57,0.00022917,2]
[393186166,1762303843607,-435.40327286,0.00023,2]
[393186167,1762303843618,-997.4123682,0.00023,2]
[393186168,1762303843629,-500.0,0.00023042,2]
[393186169,1762303843639,-513.0,0.00023042,2]
[393186170,1762303843649,-2559.55819196,0.000231,2]
[393186171,1762303843658,-215.89716196,0.00023116,2]
[393186172,1762303843667,-2000.0,0.00023116,2]
[393186173,1762303843676,-2000.0,0.00023116,2]
[393186174,1762303843685,-2000.0,0.00023116,2]
[393186175,1762303843694,-1500.0,0.00023116,2]
[393186176,1762303843704,-2000.0,0.00023116,2]
[393186177,1762303843713,-2000.0,0.00023116,2]
[393186178,1762303843722,-2000.0,0.00023116,2]
[393186179,1762303843731,-2000.0,0.00023116,2]
[393186180,1762303843740,-2000.0,0.00023116,2]
[393186181,1762303843750,-864.43774244,0.00023116,2]
[393186182,1762303843760,-1018.75170071,0.00023116,2]
[393186183,1762303843769,-2000.0,0.00023116,2]
[393186184,1762303843778,-166.66,0.00023136,2]
[393186185,1762303843787,-706.28171581,0.00023146,2]
[393186186,1762303843796,-157.96172807,0.00023164,2]
[393186187,1762303843805,-500.0,0.00023173,2]
[393186188,1762303843814,-500.0,0.00023173,2]
[393186189,1762303843824,-150.0,0.00023173,2]
[393186190,1762303843833,-500.0,0.00023173,2]
[393186191,1762303843842,-500.0,0.00023173,2]
[393186192,1762303843851,-500.0,0.00023173,2]
[393186193,1762303843861,-564.79627528,0.00023173,2]
[393186194,1762303843871,-500.0,0.00023173,2]
[393186195,1762303843880,-500.0,0.00023173,2]
[393186196,1762303843890,-150.0,0.00023173,2]
[393186197,1762303843899,-162.03096013,0.00023173,2]
[393186198,1762303843909,-150.0,0.00023173,2]
[393186199,1762303843918,-500.0,0.00023179,2]
[393186200,1762303843927,-513.0,0.00023179,2]
[393186201,1762303843936,-3903.82317,0.0002318,2]
[393186202,1762303843946,-873.57,0.00023191,2]
[393186204,1762303843959,-51643.53153563,0.000232,2]
[393186206,1762303843968,-500.0,0.00023316,2]
[393186208,1762303843978,-513.0,0.00023316,2]
[393186209,1762303843987,-523.90862706,0.0002345,2]
[393186210,1762303843997,-151.0,0.0002345,7]
[393186211,1762303844008,-151.0,0.0002345,7]
[393186212,1762303844018,-500.0,0.00023453,2]
[393186213,1762303844029,-513.0,0.00023453,2]
[393186214,1762303844038,-873.57,0.00023465,2]
[393186215,1762303844049,-823.0,0.00023491,2]
[393186216,1762303844058,-823.0,0.00023491,2]
[393186217,1762303844068,-200.0,0.000235,2]
[393186218,1762303844078,-595.95234334,0.00023527,2]
[393186219,1762303844087,-228.076989,0.00023529,7]
[393186220,1762303844096,-288.942857,0.00023529,7]
[393186221,1762303844108,-4813.0,0.00023529,2]
[393186222,1762303844117,-417.0,0.00023544,2]
[393186223,1762303844127,-465.14466624,0.0002359,2]
[393186224,1762303844136,-513.0,0.0002359,2]
[393186225,1762303844147,-500.0,0.00023664,2]
[393186226,1762303844156,-1014.0387098,0.00023664,2]
[393186227,1762303844166,-501.18214903,0.00023664,2]
[393186228,1762303844176,-2500.0,0.00023664,2]
[393186229,1762303844185,-274.03961248,0.00023664,2]
[393186230,1762303844195,-195.78948399,0.00023664,2]
[393186231,1762303844204,-449.20773238,0.00023664,2]
[393186232,1762303844214,-2500.0,0.00023664,2]
[393186233,1762303844223,-2500.0,0.00023664,2]
[393186234,1762303844232,-1000.0,0.00023721,2]
[393186235,1762303844241,-1000.0,0.00023721,2]
[393186236,1762303844250,-250.0,0.00023721,2]
[393186237,1762303844260,-1000.0,0.00023721,2]
[393186238,1762303844269,-1010.91373143,0.00023721,2]
[393186239,1762303844278,-500.0,0.00023721,2]
[393186240,1762303844288,-1000.0,0.00023721,2]
[393186241,1762303844297,-250.0,0.00023721,2]
[393186242,1762303844306,-250.0,0.00023721,2]
[393186243,1762303844315,-513.0,0.00023727,2]
[393186244,1762303844323,-873.57,0.00023739,2]
[393186245,1762303844331,-166.66,0.00023811,2]
[393186246,1762303844340,-3292.0,0.00023839,2]
[393186247,1762303844349,-154.614434,0.00023839,7]
[393186248,1762303844358,-513.0,0.00023864,2]
[393186249,1762303844368,-772.97161209,0.00024,2]
[393186250,1762303844377,-3600.0,0.00024,2]
[393186251,1762303844387,-16043.28881846,0.00024,2]
[393186252,1762303844396,-151.0,0.00024,7]
[393186253,1762303844405,-151.0,0.00024,7]
[393186254,1762303844414,-151.0,0.00024,7]
[393186255,1762303844423,-329.67239,0.00024,7]
[393186256,1762303844433,-329.67239,0.00024,7]
[393186257,1762303844441,-329.67239,0.00024,7]
[393186258,1762303844451,-329.67239,0.00024,7]
[393186259,1762303844461,-151.0,0.00024,7]
[393186260,1762303844469,-151.0,0.00024,7]
[393186261,1762303844479,-513.0,0.00024001,2]
[393186262,1762303844487,-873.58983205,0.00024013,2]
[393186263,1762303844497,-535.89159977,0.00024138,2]
[393186264,1762303844506,-414.94774313,0.00024156,2]
[393186265,1762303844515,-417.44325636,0.0002421,2]
[393186266,1762303844524,-3657.88863295,0.0002421,2]
[393186267,1762303844534,-2651.16713156,0.00024212,2]
[393186268,1762303844543,-2485.19515674,0.00024212,2]
[393186269,1762303844552,-3000.0,0.00024212,2]
[393186270,1762303844562,-477.65212186,0.00024232,2]
[393186271,1762303844571,-1014.70956381,0.00024268,2]
[393186272,1762303844580,-1500.0,0.00024268,2]
[393186273,1762303844589,-250.0,0.00024268,2]
[393186274,1762303844598,-324.80016676,0.00024268,2]
[393186275,1762303844607,-1500.0,0.00024268,2]
[393186276,1762303844616,-253.80849945,0.00024268,2]
[393186277,1762303844627,-350.0,0.00024268,2]
[393186278,1762303844636,-7986.58946562,0.00024294,2]
[393186279,1762303844644,-150.0,0.00024301,2]
[393186280,1762303844653,-156.13,0.00024432,2]
[393186281,1762303844662,-591.20477657,0.0002465,2]
[393186282,1762303844672,-500.0,0.00024657,2]
[393186283,1762303844681,-500.0,0.00024657,2]
[393186284,1762303844690,-356.47,0.00024658,2]
[393186285,1762303844699,-150.0,0.00024658,2]
[393186286,1762303844708,-8949.55818752,0.00024727,2]
[393186287,1762303844716,-3256.9801503,0.00024746,2]
[393186288,1762303844726,-3500.0,0.0002476,2]
[393186289,1762303844735,-500.0,0.00024772,2]
[393186290,1762303844746,-151.0,0.00024779,7]
[393186291,1762303844756,-150.0,0.00024795,2]
[393186292,1762303844765,-500.0,0.00024799,2]
[393186293,1762303844774,-151.0,0.000248,7]
[393186294,1762303844784,-151.0,0.000248,7]
[393186295,1762303844793,-134616.260205,0.000248,3]
[393186296,1762303844802,-151.0,0.000248,7]
[393186297,1762303844812,-151.0,0.000248,7]
[393186298,1762303844821,-151.0,0.000248,7]
[393186299,1762303844832,-151.0,0.000248,7]
[393186300,1762303844843,-151.0,0.000248,7]
[393186301,1762303844852,-329.67239,0.000248,7]
[393186302,1762303844862,-329.67239,0.000248,7]
[393186303,1762303844872,-329.67239,0.000248,7]
[393186304,1762303844882,-329.67239,0.000248,7]
[393186305,1762303844891,-151.0,0.000248,7]
[393186306,1762303844900,-151.0,0.00024816,7]
[393186307,1762303844909,-706.9778576,0.00024816,2]
[393186308,1762303844919,-755.05357836,0.00024816,2]
[393186309,1762303844928,-531.31721806,0.00024816,2]
[393186310,1762303844938,-36067.4363295,0.00024851,2]
[393186311,1762303844947,-500.0,0.00024889,2]
[393186312,1762303844961,-29914.72449,0.0002489,3]
[393186313,1762303844971,-500.0,0.00024899,2]
[393186314,1762303844980,-500.0,0.00024899,2]
[393186315,1762303844989,-50931.33379895,0.000249,3]
[393186316,1762303845016,-11206.0,0.000249,3]
[393186317,1762303845027,-391.74,0.000249,3]
[393186318,1762303845041,-2539.37121769,0.000249,3]
[393186319,1762303845053,-10088.13599999,0.000249,3]
[393186320,1762303845065,-1461.72834254,0.000249,3]
[393186321,1762303845084,-13896.43629089,0.000249,3]
[393186322,1762303845095,-36336.51291817,0.000249,3]
[393186323,1762303845106,-22542.56362377,0.000249,3]
[393186324,1762303845115,-151.0,0.000249,7]
[393186325,1762303845125,-151.0,0.000249,7]
[393186326,1762303845134,-151.0,0.000249,7]
[393186327,1762303845143,-329.67239,0.000249,7]
[393186328,1762303845153,-329.67239,0.000249,7]
[393186329,1762303845163,-329.67239,0.000249,7]
[393186330,1762303845172,-329.67239,0.000249,7]
[393186331,1762303845182,-151.0,0.000249,7]
[393186332,1762303845191,-500.0,0.00024932,2]
[393186333,1762303845200,-1852.42,0.00024957,2]
[393186334,1762303845211,-12449.4851827,0.0002497,3]
[393186335,1762303845221,-1551.75115131,0.0002498,3]
[393186336,1762303845234,-13405.61109369,0.0002498,3]
[393186337,1762303845244,-14957.362245,0.0002499,3]
[393186338,1762303845253,-24898.9703654,0.0002499,3]
[393186339,1762303845264,-204.97760912,0.00025,2]
[393186340,1762303845274,-1762.93893304,0.00025,2]
[393186341,1762303845283,-8102.6693755,0.00025,2]
[393186342,1762303845294,-550.55,0.00025,2]
[393186343,1762303845306,-6682.42636802,0.00025,2]
[393186344,1762303845316,-360.0,0.00025,2]
[393186345,1762303845325,-3780.10760956,0.00025,2]
[393186346,1762303845335,-997.77426223,0.00025,2]
[393186347,1762303845412,-2008.3672748,0.00025,2]